[Event "Masters Tournament (MTO)"]
[Site "Biel, Switzerland"]
[Date "2026.07.15"]
[Round "3.40"]
[White "Bucher, Dominic"]
[Black "Joly, Fabrice"]
[Result "1-0"]
[TimeControl "100+30+30sec/move"]
[WhiteTitle "-"]
[BlackTitle "-"]
[WhiteFideId "1353144"]
[BlackFideId "612235"]
[WhiteElo "2078"]
[BlackElo "1907"]

1. e4 {[%clk 01:40:57]} {[%emt 00:00:02]} e5 {[%clk 01:40:42]} {[%emt
00:00:19]} 2. Nf3 {[%clk 01:41:18]} {[%emt 00:00:09]} Nf6 {[%clk 01:41:06]}
{[%emt 00:00:06]} 3. d4 {[%clk 01:41:39]} {[%emt 00:00:10]} Nxe4 {[%clk
01:41:08]} {[%emt 00:00:28]} 4. Bd3 {[%clk 01:42:01]} {[%emt 00:00:07]} d5
{[%clk 01:41:23]} {[%emt 00:00:14]} 5. Nxe5 {[%clk 01:42:25]} {[%emt 00:00:07]}
Nd7 {[%clk 01:41:25]} {[%emt 00:00:28]} 6. O-O {[%clk 01:42:44]} {[%emt
00:00:10]} Nxe5 {[%clk 01:34:18]} {[%emt 00:07:38]} 7. dxe5 {[%clk 01:43:00]}
{[%emt 00:00:14]} Nc5 {[%clk 01:33:54]} {[%emt 00:00:54]} 8. Be3 {[%clk
01:43:15]} {[%emt 00:00:15]} Nxd3 {[%clk 01:16:46]} {[%emt 00:17:38]} 9. Qxd3
{[%clk 01:43:32]} {[%emt 00:00:13]} Be7 {[%clk 01:11:16]} {[%emt 00:06:00]} 10.
Nc3 {[%clk 01:40:34]} {[%emt 00:03:28]} c6 {[%clk 01:07:30]} {[%emt 00:04:16]}
11. f4 {[%clk 01:39:31]} {[%emt 00:01:33]} g6 {[%clk 01:06:53]} {[%emt
00:01:07]} 12. Rae1 {[%clk 01:28:33]} {[%emt 00:11:28]} Bf5 {[%clk 01:04:33]}
{[%emt 00:02:49]} 13. Qe2 {[%clk 01:27:08]} {[%emt 00:01:55]} Qd7 {[%clk
00:59:03]} {[%emt 00:06:01]} 14. h3 {[%clk 01:15:23]} {[%emt 00:12:15]} h5
{[%clk 00:58:57]} {[%emt 00:00:36]} 15. Rd1 {[%clk 01:11:47]} {[%emt 00:04:05]}
O-O {[%clk 00:52:31]} {[%emt 00:06:56]} 16. Kh2 {[%clk 01:00:09]} {[%emt
00:12:07]} Kg7 {[%clk 00:46:43]} {[%emt 00:06:19]} 17. Qd2 {[%clk 00:56:48]}
{[%emt 00:03:51]} Rfd8 {[%clk 00:43:08]} {[%emt 00:04:04]} 18. Ne2 {[%clk
00:53:01]} {[%emt 00:04:17]} c5 {[%clk 00:39:38]} {[%emt 00:04:00]} 19. c3
{[%clk 00:52:36]} {[%emt 00:00:55]} h4 {[%clk 00:32:37]} {[%emt 00:07:32]} 20.
Ng1 {[%clk 00:51:44]} {[%emt 00:01:22]} Be4 {[%clk 00:26:57]} {[%emt 00:06:10]}
21. Nf3 {[%clk 00:50:27]} {[%emt 00:01:46]} Qf5 {[%clk 00:25:04]} {[%emt
00:02:23]} 22. Qf2 {[%clk 00:44:42]} {[%emt 00:06:16]} Rh8 {[%clk 00:18:05]}
{[%emt 00:07:29]} 23. Rd2 {[%clk 00:31:25]} {[%emt 00:13:47]} Rad8 {[%clk
00:16:57]} {[%emt 00:01:37]} 24. Ng5 {[%clk 00:25:48]} {[%emt 00:06:08]} b6
{[%clk 00:11:32]} {[%emt 00:05:55]} 25. Nxe4 {[%clk 00:25:10]} {[%emt
00:01:08]} Qxe4 {[%clk 00:08:59]} {[%emt 00:03:02]} 26. Rfd1 {[%clk 00:25:08]}
{[%emt 00:00:32]} Rd7 {[%clk 00:08:58]} {[%emt 00:00:32]} 27. Re2 {[%clk
00:14:56]} {[%emt 00:10:42]} Qf5 {[%clk 00:09:00]} {[%emt 00:00:28]} 28. b4
{[%clk 00:14:34]} {[%emt 00:00:52]} cxb4 {[%clk 00:06:21]} {[%emt 00:03:09]} 29.
Bd4 {[%clk 00:14:33]} {[%emt 00:00:31]} Qe6 {[%clk 00:06:21]} {[%emt 00:00:30]}
30. cxb4 {[%clk 00:13:25]} {[%emt 00:01:38]} Bxb4 {[%clk 00:06:17]} {[%emt
00:00:34]} 31. Rc2 {[%clk 00:13:39]} {[%emt 00:00:16]} Bc5 {[%clk 00:04:23]}
{[%emt 00:02:25]} 32. Bxc5 {[%clk 00:13:19]} {[%emt 00:00:49]} bxc5 {[%clk
00:04:52]} {[%emt 00:00:02]} 33. Rxc5 {[%clk 00:13:08]} {[%emt 00:00:40]} d4
{[%clk 00:04:49]} {[%emt 00:00:33]} 34. Rxd4 {[%clk 00:12:41]} {[%emt
00:00:57]} Rxd4 {[%clk 00:03:55]} {[%emt 00:01:24]} 35. Qxd4 {[%clk 00:13:01]}
{[%emt 00:00:10]} Rb8 {[%clk 00:02:59]} {[%emt 00:01:26]} 36. Rc7 {[%clk
00:10:52]} {[%emt 00:02:39]} a6 {[%clk 00:02:50]} {[%emt 00:00:39]} 37. Rd7
{[%clk 00:08:44]} {[%emt 00:02:37]} Kg8 {[%clk 00:02:33]} {[%emt 00:00:48]} 38.
a4 {[%clk 00:06:52]} {[%emt 00:02:22]} Qb6 {[%clk 00:02:03]} {[%emt 00:01:00]}
39. Qd5 {[%clk 00:04:59]} {[%emt 00:02:23]} Rf8 {[%clk 00:01:53]} {[%emt
00:00:40]} 40. Rd6 {[%clk 00:05:14]} {[%emt 00:00:15]} Qb1 {[%clk 00:01:05]}
{[%emt 00:01:17]} 41. Rxa6 {[%clk 00:04:06]} {[%emt 00:01:38]} Kg7 {[%clk
00:26:54]} {[%emt 00:04:43]} 42. Ra7 {[%clk 00:23:09]} {[%emt 00:11:26]} Qb6
{[%clk 00:25:02]} {[%emt 00:02:22]} 43. Rb7 {[%clk 00:22:36]} {[%emt 00:01:03]}
Qf2 {[%clk 00:25:11]} {[%emt 00:00:20]} 44. Qf3 {[%clk 00:22:42]} {[%emt
00:00:24]} Qxf3 {[%clk 00:25:15]} {[%emt 00:00:26]} 45. gxf3 {[%clk 00:22:55]}
{[%emt 00:00:18]} Kg8 {[%clk 00:18:24]} {[%emt 00:07:21]} 46. Rb2 {[%clk
00:22:03]} {[%emt 00:01:22]} Ra8 {[%clk 00:16:27]} {[%emt 00:02:27]} 47. Ra2
{[%clk 00:22:08]} {[%emt 00:00:25]} Ra5 {[%clk 00:16:43]} {[%emt 00:00:13]} 48.
Kg2 {[%clk 00:22:28]} {[%emt 00:00:11]} Kf8 {[%clk 00:17:02]} {[%emt 00:00:11]}
49. Kf2 {[%clk 00:22:41]} {[%emt 00:00:17]} Ke7 {[%clk 00:13:56]} {[%emt
00:03:36]} 50. Ke3 {[%clk 00:22:42]} {[%emt 00:00:29]} f6 {[%clk 00:14:00]}
{[%emt 00:00:25]} 51. Kd4 {[%clk 00:21:54]} {[%emt 00:01:19]} Ke6 {[%clk
00:13:18]} {[%emt 00:01:12]} 52. Kc4 {[%clk 00:20:19]} {[%emt 00:02:05]} fxe5
{[%clk 00:12:59]} {[%emt 00:00:49]} 53. fxe5 {[%clk 00:20:27]} {[%emt
00:00:22]} Kxe5 {[%clk 00:13:17]} {[%emt 00:00:12]} 54. Kb4 {[%clk 00:20:26]}
{[%emt 00:00:31]} Ra8 {[%clk 00:13:33]} {[%emt 00:00:14]} 55. Rg2 {[%clk
00:20:10]} {[%emt 00:00:46]} Kf5 {[%clk 00:12:16]} {[%emt 00:01:47]} 56. a5
{[%clk 00:19:53]} {[%emt 00:00:47]} Rb8+ {[%clk 00:11:32]} {[%emt 00:01:14]} 57.
Kc5 {[%clk 00:16:40]} {[%emt 00:03:43]} Rb3 {[%clk 00:11:06]} {[%emt 00:00:56]}
58. Rg4 {[%clk 00:15:06]} {[%emt 00:02:04]} g5 {[%clk 00:10:34]} {[%emt
00:01:03]} 59. a6 {[%clk 00:10:53]} {[%emt 00:04:42]} Rxf3 {[%clk 00:07:24]}
{[%emt 00:03:40]} 60. a7 {[%clk 00:10:51]} {[%emt 00:00:32]} Rxh3 {[%clk
00:07:27]} {[%emt 00:00:26]} 61. Rxg5 {[%clk 00:10:33]} {[%emt 00:00:48]} Kxg5
{[%clk 00:07:44]} {[%emt 00:00:14]} 62. a8=Q {[%clk 00:10:51]} {[%emt
00:00:13]} Rg3 {[%clk 00:07:35]} {[%emt 00:00:37]} 63. Kd4 {[%clk 00:09:18]}
{[%emt 00:02:04]} Kg4 {[%clk 00:07:06]} {[%emt 00:00:58]} 64. Qa1 {[%clk
00:08:51]} {[%emt 00:00:57]} h3 {[%clk 00:05:53]} {[%emt 00:01:44]} 65. Qd1
{[%clk 00:08:41]} {[%emt 00:00:40]} Kh4 {[%clk 00:05:12]} {[%emt 00:01:11]} 66.
Ke4 {[%clk 00:03:05]} {[%emt 00:06:06]} h2 {[%clk 00:01:11]} {[%emt 00:04:31]}
67. Kf4 {[%clk 00:02:55]} {[%emt 00:00:40]} Rg1 {[%clk 00:01:01]} {[%emt
00:00:40]} 68. Qd8 {[%clk 00:03:09]} {[%emt 00:00:15]} Kh3 {[%clk 00:01:07]}
{[%emt 00:00:24]} 69. Qd3+ {[%clk 00:03:24]} {[%emt 00:00:15]} 1-0

[Event "Masters Tournament (MTO)"]
[Site "Biel, Switzerland"]
[Date "2026.07.15"]
[Round "3.41"]
[White "Arndt, Uwe"]
[Black "Magnussen, Petur Gardar"]
[Result "1-0"]
[TimeControl "100+30+30sec/move"]
[WhiteTitle "-"]
[BlackTitle "-"]
[WhiteFideId "24647713"]
[BlackFideId "7203802"]
[WhiteElo "2005"]
[BlackElo "1957"]

1. d4 {[%clk 01:40:58]} {[%emt 00:00:02]} d5 {[%clk 01:40:54]} {[%emt
00:00:07]} 2. c4 {[%clk 01:41:22]} {[%emt 00:00:05]} e6 {[%clk 01:41:22]}
{[%emt 00:00:03]} 3. Nf3 {[%clk 01:41:44]} {[%emt 00:00:08]} Nf6 {[%clk
01:41:40]} {[%emt 00:00:12]} 4. g3 {[%clk 01:42:07]} {[%emt 00:00:07]} dxc4
{[%clk 01:41:46]} {[%emt 00:00:24]} 5. Qa4+ {[%clk 01:41:38]} {[%emt 00:00:59]}
Bd7 {[%clk 01:41:19]} {[%emt 00:00:57]} 6. Qxc4 {[%clk 01:42:00]} {[%emt
00:00:08]} Bc6 {[%clk 01:41:22]} {[%emt 00:00:27]} 7. Bg2 {[%clk 01:42:22]}
{[%emt 00:00:09]} Nbd7 {[%clk 01:41:27]} {[%emt 00:00:24]} 8. O-O {[%clk
01:42:15]} {[%emt 00:00:36]} Nb6 {[%clk 01:40:03]} {[%emt 00:01:55]} 9. Qc2
{[%clk 01:41:48]} {[%emt 00:00:57]} Be4 {[%clk 01:36:59]} {[%emt 00:03:34]} 10.
Qd1 {[%clk 01:41:53]} {[%emt 00:00:25]} c5 {[%clk 01:34:13]} {[%emt 00:03:16]}
11. Nc3 {[%clk 01:40:02]} {[%emt 00:02:21]} Bc6 {[%clk 01:30:12]} {[%emt
00:04:30]} 12. e3 {[%clk 01:32:55]} {[%emt 00:07:37]} Be7 {[%clk 01:27:11]}
{[%emt 00:03:31]} 13. b3 {[%clk 01:30:32]} {[%emt 00:02:54]} O-O {[%clk
01:25:59]} {[%emt 00:01:42]} 14. Bb2 {[%clk 01:30:51]} {[%emt 00:00:11]} Bxf3
{[%clk 01:19:02]} {[%emt 00:07:27]} 15. Bxf3 {[%clk 01:30:37]} {[%emt
00:00:43]} cxd4 {[%clk 01:19:18]} {[%emt 00:00:15]} 16. exd4 {[%clk 01:29:32]}
{[%emt 00:01:34]} Nbd5 {[%clk 01:17:15]} {[%emt 00:02:33]} 17. Rc1 {[%clk
01:22:49]} {[%emt 00:07:13]} Qa5 {[%clk 01:09:25]} {[%emt 00:08:20]} 18. Qe2
{[%clk 01:15:27]} {[%emt 00:07:52]} Rac8 {[%clk 01:03:35]} {[%emt 00:06:21]} 19.
Nxd5 {[%clk 01:14:27]} {[%emt 00:01:30]} Nxd5 {[%clk 01:03:34]} {[%emt
00:00:31]} 20. a3 {[%clk 01:10:07]} {[%emt 00:04:50]} Bd6 {[%clk 00:57:45]}
{[%emt 00:06:19]} 21. Rc4 {[%clk 01:05:35]} {[%emt 00:05:02]} b5 {[%clk
00:56:21]} {[%emt 00:01:54]} 22. b4 {[%clk 01:01:53]} {[%emt 00:04:11]} Qb6
{[%clk 00:52:49]} {[%emt 00:04:02]} 23. Rcc1 {[%clk 01:00:03]} {[%emt
00:02:20]} a5 {[%clk 00:47:05]} {[%emt 00:06:14]} 24. bxa5 {[%clk 00:57:21]}
{[%emt 00:03:12]} Qxa5 {[%clk 00:46:50]} {[%emt 00:00:46]} 25. Bxd5 {[%clk
00:42:00]} {[%emt 00:15:50]} exd5 {[%clk 00:46:39]} {[%emt 00:00:42]} 26. Qf3
{[%clk 00:39:17]} {[%emt 00:03:11]} Qa8 {[%clk 00:43:55]} {[%emt 00:03:15]} 27.
Rc3 {[%clk 00:36:34]} {[%emt 00:03:14]} Rxc3 {[%clk 00:38:18]} {[%emt
00:06:06]} 28. Qxc3 {[%clk 00:36:54]} {[%emt 00:00:10]} Rc8 {[%clk 00:38:07]}
{[%emt 00:00:41]} 29. Qb3 {[%clk 00:37:03]} {[%emt 00:00:22]} Qb7 {[%clk
00:35:10]} {[%emt 00:03:27]} 30. Rb1 {[%clk 00:35:13]} {[%emt 00:02:20]} Rc4
{[%clk 00:34:53]} {[%emt 00:00:46]} 31. Bc1 {[%clk 00:21:30]} {[%emt 00:14:13]}
Rxd4 {[%clk 00:27:50]} {[%emt 00:07:33]} 32. Be3 {[%clk 00:21:32]} {[%emt
00:00:28]} Rc4 {[%clk 00:25:57]} {[%emt 00:02:24]} 33. Qxb5 {[%clk 00:21:35]}
{[%emt 00:00:27]} Qxb5 {[%clk 00:23:00]} {[%emt 00:03:26]} 34. Rxb5 {[%clk
00:21:59]} {[%emt 00:00:07]} h6 {[%clk 00:21:56]} {[%emt 00:01:33]} 35. Rxd5
{[%clk 00:21:58]} {[%emt 00:00:31]} Bxa3 {[%clk 00:22:06]} {[%emt 00:00:20]} 36.
Rd8+ {[%clk 00:21:40]} {[%emt 00:00:49]} Kh7 {[%clk 00:22:26]} {[%emt
00:00:10]} 37. h4 {[%clk 00:20:33]} {[%emt 00:01:36]} Rc7 {[%clk 00:20:38]}
{[%emt 00:02:18]} 38. Rd5 {[%clk 00:20:12]} {[%emt 00:00:52]} Bf8 {[%clk
00:20:16]} {[%emt 00:00:51]} 39. h5 {[%clk 00:18:37]} {[%emt 00:02:05]} Rb7
{[%clk 00:19:33]} {[%emt 00:01:14]} 40. Kg2 {[%clk 00:18:37]} {[%emt 00:00:30]}
Be7 {[%clk 00:19:46]} {[%emt 00:00:17]} 41. Kf3 {[%clk 00:18:32]} {[%emt
00:00:34]} Rc7 {[%clk 00:19:55]} {[%emt 00:00:22]} 42. g4 {[%clk 00:17:47]}
{[%emt 00:01:15]} f6 {[%clk 00:19:36]} {[%emt 00:00:48]} 43. Ke4 {[%clk
00:17:01]} {[%emt 00:01:15]} Kg8 {[%clk 00:18:21]} {[%emt 00:01:46]} 44. Kf5
{[%clk 00:15:26]} {[%emt 00:02:04]} Kf7 {[%clk 00:18:47]} {[%emt 00:00:05]} 45.
Rb5 {[%clk 00:14:54]} {[%emt 00:01:01]} Rd7 {[%clk 00:18:55]} {[%emt 00:00:23]}
46. f4 {[%clk 00:13:26]} {[%emt 00:01:57]} Rd3 {[%clk 00:18:50]} {[%emt
00:00:36]} 47. Ke4 {[%clk 00:11:35]} {[%emt 00:02:21]} Rd7 {[%clk 00:19:19]}
{[%emt 00:00:02]} 48. Rb8 {[%clk 00:09:50]} {[%emt 00:02:13]} Rc7 {[%clk
00:19:36]} {[%emt 00:00:14]} 49. Bd4 {[%clk 00:05:54]} {[%emt 00:04:25]} Rd7
{[%clk 00:19:24]} {[%emt 00:00:44]} 50. Rc8 {[%clk 00:05:58]} {[%emt 00:00:25]}
Bf8 {[%clk 00:19:07]} {[%emt 00:00:47]} 51. Bb6 {[%clk 00:05:25]} {[%emt
00:01:03]} Rb7 {[%clk 00:19:08]} {[%emt 00:00:30]} 52. Rc6 {[%clk 00:04:37]}
{[%emt 00:01:16]} Rd7 {[%clk 00:19:12]} {[%emt 00:00:28]} 53. Bc7 {[%clk
00:04:08]} {[%emt 00:00:59]} Be7 {[%clk 00:19:31]} {[%emt 00:00:11]} 54. Rc4
{[%clk 00:02:33]} {[%emt 00:02:05]} Bf8 {[%clk 00:19:59]} {[%emt 00:00:02]} 55.
Bb6 {[%clk 00:02:13]} {[%emt 00:00:50]} Rb7 {[%clk 00:20:16]} {[%emt 00:00:13]}
56. Rc6 {[%clk 00:01:49]} {[%emt 00:00:54]} Rd7 {[%clk 00:20:29]} {[%emt
00:00:17]} 57. Bd4 {[%clk 00:01:59]} {[%emt 00:00:18]} Be7 {[%clk 00:20:56]}
{[%emt 00:00:04]} 58. Be3 {[%clk 00:01:49]} {[%emt 00:00:40]} Rb7 {[%clk
00:21:16]} {[%emt 00:00:11]} 59. Bd4 {[%clk 00:29:14]} {[%emt 00:03:05]} Rd7
{[%clk 00:51:16]} {[%emt 00:00:30]} 60. Rb6 {[%clk 00:29:01]} {[%emt 00:00:42]}
Rc7 {[%clk 00:51:05]} {[%emt 00:00:41]} 61. Rb5 {[%clk 00:25:14]} {[%emt
00:04:18]} Rd7 {[%clk 00:50:32]} {[%emt 00:01:03]} 62. Be3 {[%clk 00:25:36]}
{[%emt 00:00:07]} Rc7 {[%clk 00:50:38]} {[%emt 00:00:25]} 63. Kf5 {[%clk
00:23:56]} {[%emt 00:02:10]} Rd7 {[%clk 00:50:57]} {[%emt 00:00:12]} 64. Ra5
{[%clk 00:22:19]} {[%emt 00:02:06]} Rc7 {[%clk 00:51:10]} {[%emt 00:00:16]} 65.
Rd5 {[%clk 00:21:39]} {[%emt 00:01:10]} Rb7 {[%clk 00:51:33]} {[%emt 00:00:08]}
66. Bf2 {[%clk 00:17:43]} {[%emt 00:04:26]} Rc7 {[%clk 00:51:51]} {[%emt
00:00:12]} 67. Rb5 {[%clk 00:16:08]} {[%emt 00:02:05]} Rd7 {[%clk 00:52:03]}
{[%emt 00:00:18]} 68. Bg3 {[%clk 00:16:22]} {[%emt 00:00:16]} Rc7 {[%clk
00:52:18]} {[%emt 00:00:16]} 69. g5 {[%clk 00:15:18]} {[%emt 00:01:32]} hxg5
{[%clk 00:52:22]} {[%emt 00:00:26]} 70. fxg5 {[%clk 00:15:41]} {[%emt
00:00:07]} fxg5 {[%clk 00:52:40]} {[%emt 00:00:12]} 71. Bxc7 {[%clk 00:16:05]}
{[%emt 00:00:07]} 1-0

[Event "Masters Tournament (MTO)"]
[Site "Biel, Switzerland"]
[Date "2026.07.15"]
[Round "3.42"]
[White "Petry, Martin"]
[Black "Simon, Ralf-Axel"]
[Result "1/2-1/2"]
[TimeControl "100+30+30sec/move"]
[WhiteTitle "-"]
[BlackTitle "-"]
[WhiteFideId "1352318"]
[BlackFideId "4603125"]
[WhiteElo "1999"]
[BlackElo "1935"]

1. Nf3 {[%clk 01:40:54]} {[%emt 00:00:04]} d5 {[%clk 01:37:33]} {[%emt
00:03:28]} 2. g3 {[%clk 01:41:05]} {[%emt 00:00:18]} g6 {[%clk 01:37:16]}
{[%emt 00:00:47]} 3. Bg2 {[%clk 01:41:04]} {[%emt 00:00:32]} Bg7 {[%clk
01:37:29]} {[%emt 00:00:16]} 4. c4 {[%clk 01:39:10]} {[%emt 00:02:25]} d4
{[%clk 01:31:42]} {[%emt 00:06:16]} 5. d3 {[%clk 01:37:55]} {[%emt 00:01:45]}
e5 {[%clk 01:26:25]} {[%emt 00:05:47]} 6. O-O {[%clk 01:35:23]} {[%emt
00:03:03]} Ne7 {[%clk 01:26:09]} {[%emt 00:00:45]} 7. b4 {[%clk 01:32:01]}
{[%emt 00:03:53]} O-O {[%clk 01:12:20]} {[%emt 00:14:17]} 8. Qb3 {[%clk
01:30:02]} {[%emt 00:02:30]} c6 {[%clk 00:46:57]} {[%emt 00:25:53]} 9. a4
{[%clk 01:28:07]} {[%emt 00:02:26]} a5 {[%clk 00:31:56]} {[%emt 00:15:31]} 10.
Ba3 {[%clk 01:22:50]} {[%emt 00:05:47]} axb4 {[%clk 00:24:37]} {[%emt
00:07:48]} 11. Bxb4 {[%clk 01:17:50]} {[%emt 00:05:30]} Na6 {[%clk 00:20:58]}
{[%emt 00:04:10]} 12. Ba3 {[%clk 01:15:09]} {[%emt 00:03:11]} Qc7 {[%clk
00:19:54]} {[%emt 00:01:33]} 13. Bxe7 {[%clk 01:06:43]} {[%emt 00:08:57]} Qxe7
{[%clk 00:20:00]} {[%emt 00:00:22]} 14. Nbd2 {[%clk 01:07:03]} {[%emt
00:00:11]} Rb8 {[%clk 00:12:51]} {[%emt 00:07:40]} 15. h4 {[%clk 00:56:10]}
{[%emt 00:11:23]} h6 {[%clk 00:12:12]} {[%emt 00:01:09]} 16. Qb6 {[%clk
00:52:16]} {[%emt 00:04:23]} Qc7 {[%clk 00:10:45]} {[%emt 00:01:57]} 17. Rfb1
{[%clk 00:47:25]} {[%emt 00:05:22]} Qxb6 {[%clk 00:10:59]} {[%emt 00:00:16]} 18.
Rxb6 {[%clk 00:47:53]} {[%emt 00:00:02]} Nc5 {[%clk 00:11:16]} {[%emt
00:00:13]} 19. Ne1 {[%clk 00:37:35]} {[%emt 00:10:47]} Ra8 {[%clk 00:11:14]}
{[%emt 00:00:32]} 20. a5 {[%clk 00:35:00]} {[%emt 00:03:06]} Ra7 {[%clk
00:10:56]} {[%emt 00:00:47]} 21. Ne4 {[%clk 00:22:14]} {[%emt 00:13:17]} Nxe4
{[%clk 00:07:17]} {[%emt 00:04:06]} 1/2-1/2

[Event "Masters Tournament (MTO)"]
[Site "Biel, Switzerland"]
[Date "2026.07.15"]
[Round "3.43"]
[White "Malli, Shiivesh Sunil"]
[Black "Yang, Sung-Jui"]
[Result "1/2-1/2"]
[TimeControl "100+30+30sec/move"]
[WhiteTitle "-"]
[BlackTitle "-"]
[WhiteFideId "1340409"]
[BlackFideId "16301048"]
[WhiteElo "1994"]
[BlackElo "1935"]

1. c4 {[%clk 01:40:57]} {[%emt 00:00:02]} e6 {[%clk 01:37:16]} {[%emt
00:03:44]} 2. Nc3 {[%clk 01:41:17]} {[%emt 00:00:10]} d5 {[%clk 01:37:33]}
{[%emt 00:00:13]} 3. cxd5 {[%clk 01:41:40]} {[%emt 00:00:07]} exd5 {[%clk
01:37:54]} {[%emt 00:00:09]} 4. d4 {[%clk 01:42:06]} {[%emt 00:00:04]} Nf6
{[%clk 01:37:41]} {[%emt 00:00:43]} 5. Nf3 {[%clk 01:42:29]} {[%emt 00:00:07]}
c6 {[%clk 01:36:30]} {[%emt 00:01:42]} 6. Bf4 {[%clk 01:42:05]} {[%emt
00:00:53]} Be7 {[%clk 01:33:49]} {[%emt 00:03:11]} 7. e3 {[%clk 01:41:54]}
{[%emt 00:00:41]} Bf5 {[%clk 01:34:03]} {[%emt 00:00:16]} 8. Bd3 {[%clk
01:41:49]} {[%emt 00:00:35]} Bxd3 {[%clk 01:34:16]} {[%emt 00:00:17]} 9. Qxd3
{[%clk 01:42:13]} {[%emt 00:00:06]} O-O {[%clk 01:34:16]} {[%emt 00:00:31]} 10.
h3 {[%clk 01:41:29]} {[%emt 00:01:12]} Nbd7 {[%clk 01:34:11]} {[%emt 00:00:36]}
11. O-O {[%clk 01:41:42]} {[%emt 00:00:17]} Re8 {[%clk 01:33:47]} {[%emt
00:00:53]} 12. Nd2 {[%clk 01:36:50]} {[%emt 00:05:22]} a5 {[%clk 01:30:31]}
{[%emt 00:03:46]} 13. Rab1 {[%clk 01:26:05]} {[%emt 00:11:15]} h6 {[%clk
01:26:26]} {[%emt 00:04:35]} 14. Qc2 {[%clk 01:22:34]} {[%emt 00:04:02]} b5
{[%clk 00:50:15]} {[%emt 00:36:42]} 15. Qd3 {[%clk 00:45:08]} {[%emt 00:37:54]}
Nb6 {[%clk 00:45:48]} {[%emt 00:04:57]} 16. b3 {[%clk 00:43:14]} {[%emt
00:02:24]} a4 {[%clk 00:41:01]} {[%emt 00:05:18]} 17. Rfc1 {[%clk 00:37:18]}
{[%emt 00:06:25]} axb3 {[%clk 00:34:39]} {[%emt 00:06:54]} 18. axb3 {[%clk
00:37:13]} {[%emt 00:00:34]} Bd6 {[%clk 00:31:35]} {[%emt 00:03:34]} 19. Ne2
{[%clk 00:34:24]} {[%emt 00:03:18]} Qd7 {[%clk 00:22:39]} {[%emt 00:09:27]} 20.
Bxd6 {[%clk 00:30:41]} {[%emt 00:04:13]} Qxd6 {[%clk 00:23:00]} {[%emt
00:00:10]} 21. Qc2 {[%clk 00:30:24]} {[%emt 00:00:46]} Rec8 {[%clk 00:19:29]}
{[%emt 00:03:59]} 22. Nf4 {[%clk 00:29:23]} {[%emt 00:01:32]} Qb4 {[%clk
00:16:19]} {[%emt 00:03:41]} 23. Nd3 {[%clk 00:28:35]} {[%emt 00:01:17]} Qd6
{[%clk 00:14:01]} {[%emt 00:02:48]} 24. Nc5 {[%clk 00:27:14]} {[%emt 00:01:52]}
Nbd7 {[%clk 00:13:24]} {[%emt 00:01:07]} 25. Nd3 {[%clk 00:22:59]} {[%emt
00:04:44]} Ne4 {[%clk 00:10:35]} {[%emt 00:03:20]} 26. Nxe4 {[%clk 00:21:20]}
{[%emt 00:02:09]} dxe4 {[%clk 00:11:00]} {[%emt 00:00:05]} 27. Nc5 {[%clk
00:21:36]} {[%emt 00:00:14]} Nxc5 {[%clk 00:10:56]} {[%emt 00:00:34]} 28. Qxc5
{[%clk 00:21:30]} {[%emt 00:00:35]} Qe6 {[%clk 00:02:32]} {[%emt 00:08:55]} 29.
Rc2 {[%clk 00:20:33]} {[%emt 00:01:27]} Rd8 {[%clk 00:00:35]} {[%emt 00:02:27]}
30. Qxc6 {[%clk 00:20:08]} {[%emt 00:00:55]} Qxc6 {[%clk 00:00:43]} {[%emt
00:00:23]} 31. Rxc6 {[%clk 00:20:29]} {[%emt 00:00:09]} Rd5 {[%clk 00:00:46]}
{[%emt 00:00:26]} 32. Rc5 {[%clk 00:19:51]} {[%emt 00:01:07]} Rxc5 {[%clk
00:00:40]} {[%emt 00:00:38]} 33. dxc5 {[%clk 00:20:15]} {[%emt 00:00:05]} b4
{[%clk 00:00:59]} {[%emt 00:00:12]} 34. c6 {[%clk 00:19:55]} {[%emt 00:00:49]}
Kf8 {[%clk 00:01:06]} {[%emt 00:00:23]} 35. Rc1 {[%clk 00:18:54]} {[%emt
00:01:30]} Rc8 {[%clk 00:01:09]} {[%emt 00:00:28]} 36. Rc4 {[%clk 00:19:13]}
{[%emt 00:00:11]} f5 {[%clk 00:01:33]} {[%emt 00:00:06]} 37. Kh2 {[%clk
00:16:16]} {[%emt 00:03:27]} Ke7 {[%clk 00:01:55]} {[%emt 00:00:08]} 38. Kg3
{[%clk 00:16:20]} {[%emt 00:00:25]} g5 {[%clk 00:02:09]} {[%emt 00:00:17]} 39.
h4 {[%clk 00:14:13]} {[%emt 00:02:37]} Kd6 {[%clk 00:02:30]} {[%emt 00:00:09]}
40. hxg5 {[%clk 00:14:37]} {[%emt 00:00:06]} hxg5 {[%clk 00:02:49]} {[%emt
00:00:11]} 41. f3 {[%clk 00:24:48]} {[%emt 00:20:18]} exf3 {[%clk 00:31:17]}
{[%emt 00:02:03]} 42. Kxf3 {[%clk 00:25:11]} {[%emt 00:00:07]} Rxc6 {[%clk
00:31:36]} {[%emt 00:00:11]} 43. Rxc6+ {[%clk 00:23:38]} {[%emt 00:02:03]} Kxc6
{[%clk 00:31:56]} {[%emt 00:00:09]} 44. e4 {[%clk 00:24:07]} {[%emt 00:00:02]}
g4+ {[%clk 00:17:35]} {[%emt 00:14:51]} 45. Kf4 {[%clk 00:24:23]} {[%emt
00:00:13]} fxe4 {[%clk 00:17:56]} {[%emt 00:00:10]} 46. Kxe4 {[%clk 00:24:48]}
{[%emt 00:00:05]} g3 {[%clk 00:14:45]} {[%emt 00:03:40]} 47. Kd4 {[%clk
00:20:29]} {[%emt 00:04:49]} Kd6 {[%clk 00:14:21]} {[%emt 00:00:54]} 1/2-1/2